fUSD/lending_fUSD_20250123
["ID","MTS","AMOUNT","RATE_DAILY","PERIOD"]
[350104375,1737628257088,-150.0,0.00019071,2]
[350104376,1737628257101,-150.0,0.00019071,2]
[350104377,1737628257112,-150.0,0.00019072,2]
[350104378,1737628257122,-530.88325754,0.00019073,2]
[350104379,1737628257131,-500.73642473,0.00019073,2]
[350104380,1737628257141,-150.0,0.00019073,2]
[350104381,1737628257151,-189.33300295,0.00019075,2]
[350104382,1737628257162,-5430.0786,0.00019076,2]
[350104383,1737628257172,-150.0,0.00019081,2]
[350104384,1737628257182,-150.0,0.00019083,2]
[350104385,1737628257191,-150.0,0.00019085,2]
[350104386,1737628257201,-150.0,0.00019086,2]
[350104387,1737628257210,-150.0,0.00019087,2]
[350104388,1737628257220,-1000.0,0.00019088,2]
[350104389,1737628257229,-150.0,0.00019089,2]
[350104390,1737628257239,-2000.0,0.0001909,2]
[350104391,1737628257248,-200.0,0.0001909,2]
[350104392,1737628257258,-150.0,0.00019098,2]
[350104393,1737628257267,-150.0,0.00019099,2]
[350104394,1737628257276,-2022.945661,0.000191,2]
[350104395,1737628257285,-151.0,0.000191,2]
[350104396,1737628257294,-151.0,0.000191,2]
[350104397,1737628257303,-151.0,0.000191,2]
[350104398,1737628257312,-151.0,0.000191,2]
[350104399,1737628257321,-151.0,0.000191,2]
[350104400,1737628257330,-150.0,0.00019107,2]
[350104401,1737628257339,-150.0,0.00019113,2]
[350104402,1737628257349,-150.0,0.00019116,2]
[350104403,1737628257359,-150.0,0.00019117,2]
[350104404,1737628257367,-150.0,0.00019119,2]
[350104405,1737628257376,-150.0,0.00019128,2]
[350104406,1737628257385,-150.0,0.0001913,2]
[350104407,1737628257394,-150.0,0.00019132,2]
[350104408,1737628257404,-150.0,0.00019135,2]
[350104409,1737628257413,-150.0,0.00019143,2]
[350104410,1737628257422,-150.0,0.00019144,2]
[350104411,1737628257431,-500.0,0.00019145,2]
[350104412,1737628257440,-1000.0,0.00019145,2]
[350104413,1737628257449,-150.0,0.00019145,2]
[350104414,1737628257458,-500.0,0.00019145,2]
[350104415,1737628257467,-150.0,0.0001915,2]
[350104416,1737628257477,-150.0,0.00019157,2]
[350104417,1737628257486,-150.0,0.00019158,2]
[350104418,1737628257495,-1186.21,0.00019165,2]
[350104419,1737628257504,-150.0,0.00019167,2]
[350104420,1737628257514,-150.0,0.00019168,2]
[350104421,1737628257523,-1000.0,0.00019169,2]
[350104422,1737628257532,-291.9271839,0.00019174,2]
[350104423,1737628257541,-187.69,0.00019174,2]
[350104424,1737628257550,-500.0,0.00019174,2]
[350104425,1737628257559,-500.0,0.00019174,2]
[350104426,1737628257569,-238.6,0.00019174,2]
[350104427,1737628257578,-500.0,0.00019174,2]
[350104428,1737628257587,-527.46931831,0.00019174,2]
[350104429,1737628257597,-500.0,0.00019174,2]
[350104430,1737628257606,-500.0,0.00019174,2]
[350104431,1737628257615,-500.0,0.00019174,2]
[350104432,1737628257624,-500.0,0.00019174,2]
[350104433,1737628257633,-500.0,0.00019174,2]
[350104434,1737628257642,-500.0,0.00019174,2]
[350104435,1737628257651,-500.0,0.00019174,2]
[350104436,1737628257659,-500.0,0.00019174,2]
[350104437,1737628257668,-500.0,0.00019174,2]
[350104438,1737628257677,-500.0,0.00019174,2]
[350104439,1737628257687,-500.0,0.00019174,2]
[350104440,1737628257699,-500.0,0.00019174,2]
[350104441,1737628257709,-300.0,0.00019174,2]
[350104442,1737628257718,-500.0,0.00019174,2]
[350104443,1737628257727,-500.0,0.00019174,2]
[350104444,1737628257736,-500.0,0.00019174,2]
[350104445,1737628257747,-553.17,0.00019174,2]
[350104446,1737628257756,-500.0,0.00019175,2]
[350104447,1737628257765,-500.0,0.00019175,2]
[350104448,1737628257775,-500.0,0.00019175,2]
[350104449,1737628257783,-500.0,0.00019175,2]
[350104450,1737628257792,-607.25,0.00019175,2]
[350104451,1737628257801,-500.0,0.00019175,2]
[350104452,1737628257810,-500.0,0.00019175,2]
[350104453,1737628257820,-500.0,0.00019175,2]
[350104454,1737628257829,-500.0,0.00019175,2]
[350104455,1737628257838,-500.0,0.00019175,2]
[350104456,1737628257849,-500.0,0.00019175,2]
[350104457,1737628257859,-538.78,0.00019175,2]
[350104458,1737628257868,-500.0,0.00019175,2]
[350104459,1737628257877,-567.4,0.00019175,2]
[350104460,1737628257887,-500.0,0.00019175,2]
[350104461,1737628257896,-524.77,0.00019175,2]
[350104462,1737628257905,-500.0,0.00019175,2]
[350104463,1737628257914,-250.22375762,0.00019175,2]
[350104464,1737628257924,-500.0,0.00019175,2]
[350104465,1737628257933,-522.01,0.00019175,2]
[350104466,1737628257942,-500.0,0.00019175,2]
[350104467,1737628258059,-787.5,0.00019175,2]
[350104468,1737628258068,-1275.34,0.00019175,2]
[350104469,1737628258078,-769.32,0.00019175,2]
[350104470,1737628258087,-2156.24,0.00019175,2]
[350104471,1737628258098,-1069.57,0.00019175,2]
[350104472,1737628258108,-1953.19,0.00019175,2]
[350104473,1737628258117,-877.78,0.00019175,2]
[350104474,1737628258127,-728.1,0.00019175,2]
[350104475,1737628258137,-1299.42,0.00019175,2]
[350104476,1737628258146,-173.47290345,0.00019175,2]
[350104477,1737628258155,-1095.09,0.00019175,2]
[350104478,1737628258164,-3013.73,0.00019175,2]
[350104479,1737628258173,-500.0,0.00019175,2]
[350104480,1737628258182,-2369.17,0.00019175,2]
[350104481,1737628258191,-500.0,0.00019175,2]
[350104482,1737628258201,-4365.14,0.00019175,2]
[350104483,1737628258209,-1210.34,0.00019175,2]
[350104484,1737628258219,-1736.02,0.00019175,2]
[350104485,1737628258228,-580.8,0.00019175,2]
[350104486,1737628258237,-896.15,0.00019175,2]
[350104487,1737628258246,-1157.55,0.00019175,2]
[350104488,1737628258255,-970.94,0.00019175,2]
[350104489,1737628258264,-500.0,0.00019175,2]
[350104490,1737628258273,-845.56,0.00019175,2]
[350104491,1737628258282,-554.1,0.00019175,2]
[350104492,1737628258291,-2164.97,0.00019175,2]
[350104493,1737628258300,-1078.92,0.00019175,2]
[350104494,1737628258309,-500.0,0.00019175,2]
[350104495,1737628258318,-991.29,0.00019175,2]
[350104496,1737628258328,-832.57,0.00019175,2]
[350104497,1737628258336,-500.0,0.00019175,2]
[350104498,1737628258347,-500.0,0.00019175,2]
[350104499,1737628258357,-1120.57,0.00019175,2]
[350104500,1737628258366,-500.0,0.00019175,2]
[350104501,1737628258375,-1260.06,0.00019175,2]
[350104502,1737628258385,-1318.84,0.00019175,2]
[350104503,1737628258394,-3971.43,0.00019175,2]
[350104504,1737628258403,-500.0,0.00019175,2]
[350104505,1737628258413,-500.0,0.00019175,2]
[350104506,1737628258422,-532.88543673,0.00019175,2]
[350104507,1737628258432,-500.0,0.00019175,2]
[350104508,1737628258441,-500.0,0.00019175,2]
[350104509,1737628258451,-500.0,0.00019175,2]
[350104510,1737628258460,-500.0,0.00019175,2]
[350104511,1737628258469,-500.0,0.00019175,2]
[350104512,1737628258479,-366.4808689,0.00019175,2]
[350104513,1737628258488,-1140.59,0.00019175,2]
[350104514,1737628258497,-500.0,0.00019175,2]
[350104515,1737628258506,-753.77,0.00019175,2]
[350104516,1737628258515,-181.98,0.00019175,2]
[350104517,1737628258525,-1619.98,0.00019175,2]
[350104518,1737628258534,-500.0,0.00019175,2]
[350104519,1737628258544,-500.0,0.00019175,2]
[350104520,1737628258553,-707.4,0.00019175,2]
[350104521,1737628258562,-1613.72,0.00019175,2]
[350104522,1737628258571,-877.65,0.00019175,2]
[350104523,1737628258581,-525.36,0.00019175,2]
[350104524,1737628258590,-913.42,0.00019175,2]
[350104525,1737628258601,-1322.09,0.00019175,2]
[350104526,1737628258610,-500.0,0.00019175,2]
[350104527,1737628258619,-437.3222131,0.00019176,2]
[350104528,1737628258628,-500.0,0.00019176,2]
[350104529,1737628258637,-500.0,0.00019176,2]
[350104530,1737628258646,-512.04,0.00019176,2]
[350104531,1737628258655,-794.66,0.00019176,2]
[350104532,1737628258664,-209.06214714,0.00019176,2]
[350104533,1737628258673,-500.0,0.00019176,2]
[350104534,1737628258682,-500.0,0.00019176,2]
[350104535,1737628258693,-500.0,0.00019176,2]
[350104536,1737628258704,-500.0,0.00019176,2]
[350104537,1737628258713,-522.96873674,0.00019176,2]
[350104538,1737628258722,-560.87362309,0.00019176,2]
[350104539,1737628258734,-500.0,0.00019176,2]
[350104540,1737628258744,-500.0,0.00019176,2]
[350104541,1737628258753,-500.0,0.00019176,2]
[350104542,1737628258761,-500.0,0.00019176,2]
[350104543,1737628258773,-500.0,0.00019176,2]
[350104544,1737628258782,-500.0,0.00019176,2]
[350104545,1737628258791,-500.0,0.00019176,2]
[350104546,1737628258800,-500.0,0.00019176,2]
[350104547,1737628258810,-788.17,0.00019176,2]
[350104548,1737628258819,-500.0,0.00019176,2]
[350104549,1737628258827,-722.95,0.00019176,2]
[350104550,1737628258837,-150.0,0.00019176,2]
[350104551,1737628258848,-599.32,0.00019176,2]
[350104552,1737628258858,-500.0,0.00019176,2]
[350104553,1737628258867,-500.0,0.00019176,2]
[350104554,1737628258877,-500.0,0.00019176,2]
[350104555,1737628258886,-500.0,0.00019178,2]
[350104556,1737628258895,-150.0,0.00019178,2]
[350104557,1737628258904,-881.88,0.00019178,2]
[350104558,1737628258914,-741.3,0.00019178,2]
[350104559,1737628258923,-556.21,0.00019178,2]
[350104560,1737628258932,-1227.15,0.00019178,2]
[350104561,1737628258941,-2063.18259867,0.00019178,2]
[350104562,1737628258951,-1762.16,0.00019178,2]
[350104563,1737628258960,-1174.6,0.00019178,2]
[350104564,1737628258969,-583.42812666,0.00019178,2]
[350104565,1737628258978,-1813.47,0.00019178,2]
[350104566,1737628258987,-868.18,0.00019178,2]
[350104567,1737628258997,-1398.82,0.00019178,2]
[350104568,1737628259006,-1853.11,0.00019178,2]
[350104569,1737628259015,-976.92,0.00019178,2]
[350104570,1737628259025,-803.47,0.00019178,2]
[350104571,1737628259034,-878.69,0.00019178,2]
[350104572,1737628259043,-2113.38,0.00019178,2]
[350104573,1737628259053,-2524.6,0.00019178,2]
[350104574,1737628259062,-2306.75,0.00019178,2]
[350104575,1737628259071,-684.26,0.00019178,2]
[350104576,1737628259080,-619.33,0.00019178,2]
[350104577,1737628259090,-616.66,0.00019178,2]
[350104578,1737628259100,-150.0,0.0001919,2]
[350104579,1737628259110,-179.01625693,0.00019193,2]
[350104580,1737628259118,-300.0,0.00019197,2]
[350104581,1737628259128,-18788.70355,0.000192,2]
[350104582,1737628259137,-3435.93,0.000192,2]
[350104583,1737628259146,-1849.19105754,0.000192,2]
[350104584,1737628259156,-256.0,0.000192,2]
[350104585,1737628259165,-338.98778287,0.000192,2]
[350104586,1737628259174,-231.0,0.000192,2]
[350104587,1737628259183,-150.0,0.00019201,2]
[350104588,1737628259192,-1000.0,0.00019203,2]
[350104589,1737628259201,-208.33333333,0.00019205,2]
[350104590,1737628259210,-597.22222223,0.00019205,2]
[350104591,1737628259219,-150.0,0.00019212,2]
[350104592,1737628259228,-150.0,0.00019214,2]
[350104593,1737628259237,-150.0,0.00019215,2]
[350104594,1737628259247,-14356.3857851,0.00019217,2]
[350104595,1737628259256,-150.0,0.00019218,2]
[350104596,1737628259265,-150.0,0.00019219,2]
[350104597,1737628259274,-1500.0,0.00019222,2]
[350104598,1737628259283,-150.0,0.00019229,2]
[350104599,1737628259292,-1000.0,0.0001923,2]
[350104600,1737628259301,-150.0,0.00019236,2]
[350104601,1737628259310,-150.0,0.00019244,2]
[350104602,1737628259319,-1546.53689568,0.00019245,2]
[350104603,1737628259328,-150.0,0.00019245,2]
[350104604,1737628259337,-33943.0,0.0001926,2]
[350104605,1737628259347,-500.0,0.00019263,2]
[350104606,1737628259355,-500.0,0.00019263,2]
[350104607,1737628259364,-500.0,0.00019263,2]
[350104608,1737628259374,-501.34,0.00019263,2]
[350104609,1737628259383,-518.4,0.00019263,2]
[350104610,1737628259392,-500.0,0.00019263,2]
[350104611,1737628259401,-500.0,0.00019263,2]
[350104612,1737628259409,-500.0,0.00019263,2]
[350104613,1737628259418,-500.0,0.00019263,2]
[350104614,1737628259427,-1109.95,0.00019263,2]
[350104615,1737628259436,-151.0,0.00019263,2]
[350104616,1737628259445,-151.0,0.00019263,2]
[350104617,1737628259454,-500.0,0.00019263,2]
[350104618,1737628259463,-503.12,0.00019263,2]
[350104619,1737628259472,-189.046263,0.00019263,2]
[350104620,1737628259481,-1924.8,0.00019263,2]
[350104621,1737628259489,-151.0,0.00019263,2]
[350104622,1737628259499,-1424.7,0.00019263,2]
[350104623,1737628259508,-151.0,0.00019263,2]
[350104624,1737628259517,-846.93,0.00019263,2]
[350104625,1737628259527,-897.83,0.00019263,2]
[350104626,1737628259536,-1931.74,0.00019263,2]
[350104627,1737628259545,-500.0,0.00019263,2]
[350104628,1737628259554,-681.171483,0.00019263,2]
[350104629,1737628259563,-500.0,0.00019263,2]
[350104630,1737628259572,-500.0,0.00019263,2]
[350104631,1737628259581,-1135.0,0.00019263,2]
[350104632,1737628259590,-745.81,0.00019263,2]
[350104633,1737628259601,-2877.57,0.00019263,2]
[350104634,1737628259610,-752.33,0.00019263,2]
[350104635,1737628259619,-594.772219,0.00019263,2]
[350104636,1737628259628,-500.0,0.00019263,2]
[350104637,1737628259637,-885.15,0.00019263,2]
[350104638,1737628259646,-1925.26,0.00019263,2]
[350104639,1737628259655,-1152.02,0.00019263,2]
[350104640,1737628259664,-1595.84,0.00019263,2]
[350104641,1737628259673,-692.87,0.00019263,2]
[350104642,1737628259682,-1782.27,0.00019263,2]
[350104643,1737628259692,-3581.4,0.00019263,2]
[350104644,1737628259703,-2785.13,0.00019263,2]
[350104645,1737628259712,-649.91,0.00019263,2]
[350104646,1737628259721,-1135.06,0.00019263,2]
[350104647,1737628259730,-1952.88,0.00019263,2]
[350104648,1737628259740,-925.88,0.00019263,2]
[350104649,1737628259750,-2408.66,0.00019263,2]
[350104650,1737628259759,-575.04,0.00019263,2]
[350104651,1737628259767,-500.0,0.00019263,2]
[350104652,1737628259778,-500.0,0.00019263,2]
[350104653,1737628259788,-1828.0,0.00019263,2]
[350104654,1737628259797,-1061.78,0.00019263,2]
[350104655,1737628259806,-645.58,0.00019263,2]
[350104656,1737628259815,-1269.91,0.00019263,2]
[350104657,1737628259824,-2487.38,0.00019263,2]
[350104658,1737628259834,-873.75,0.00019263,2]
[350104659,1737628259844,-500.0,0.00019263,2]
[350104660,1737628259854,-1125.77,0.00019263,2]
[350104661,1737628259863,-776.84,0.00019263,2]
[350104662,1737628259872,-256.35046606,0.00019263,2]
[350104663,1737628259881,-667.54,0.00019263,2]
[350104664,1737628259890,-150.0,0.00019266,2]
[350104665,1737628259899,-150.0,0.00019267,2]
[350104666,1737628259908,-150.0,0.00019267,2]
[350104667,1737628259917,-500.0,0.00019267,2]
[350104668,1737628259926,-500.0,0.00019267,2]
[350104669,1737628259935,-500.0,0.00019267,2]
[350104670,1737628259944,-500.0,0.00019267,2]
[350104671,1737628259953,-500.0,0.00019267,2]
[350104672,1737628259962,-500.0,0.00019267,2]
[350104673,1737628259971,-698.0,0.00019267,2]
[350104674,1737628259980,-500.0,0.00019267,2]
[350104675,1737628259990,-500.0,0.00019267,2]
[350104676,1737628259999,-500.0,0.00019267,2]
[350104677,1737628260008,-500.0,0.00019267,2]
[350104678,1737628260018,-960.0,0.00019267,2]
[350104679,1737628260028,-150.0,0.00019276,2]
[350104680,1737628260038,-1000.0,0.00019277,2]
[350104681,1737628260048,-500.0,0.00019279,2]
[350104682,1737628260057,-500.0,0.00019279,2]
[350104683,1737628260174,-516.0,0.00019279,2]
[350104684,1737628260185,-150.0,0.00019281,2]
[350104685,1737628260194,-2000.0,0.00019281,2]
[350104686,1737628260204,-200.0,0.00019281,2]
[350104687,1737628260214,-150.0,0.00019283,2]
[350104688,1737628260223,-208.33333333,0.00019288,2]
[350104689,1737628260233,-597.22222223,0.00019288,2]
[350104690,1737628260242,-150.0,0.0001929,2]
[350104691,1737628260252,-6388.0083419,0.0001929,2]
[350104692,1737628260261,-1098.3782363,0.0001929,2]
[350104693,1737628260270,-2549.3789308,0.0001929,2]
[350104694,1737628260280,-1616.0850844,0.0001929,2]
[350104695,1737628260289,-151.54188646,0.00019299,2]
[350104696,1737628260299,-5577.9044783,0.00019299,2]
[350104697,1737628260308,-11386.3690073,0.00019299,2]
[350104698,1737628260317,-479.69461948,0.000193,2]
[350104699,1737628260326,-1082566.84445448,0.000193,4]
[350104700,1737628260335,-151.0,0.000193,2]
[350104701,1737628260345,-151.0,0.000193,2]
[350104702,1737628260354,-151.636453,0.000193,2]
[350104703,1737628260364,-151.0,0.000193,2]
[350104704,1737628260374,-151.234372,0.000193,2]
[350104705,1737628260383,-164.123407,0.000193,2]
[350104706,1737628260392,-164.123407,0.000193,2]
[350104707,1737628260402,-171.43484943,0.000193,4]
[350104708,1737628260411,-155.90242,0.000193,2]
[350104709,1737628260421,-152.746701,0.000193,2]
[350104710,1737628260430,-151.0,0.000193,2]
[350104711,1737628260439,-337714.27855291,0.000193,4]
[350104712,1737628260463,-856.2799995,0.000193,4]
[350104713,1737628260474,-111949.93120882,0.000193,4]
[350104714,1737628260486,-2156.03251395,0.000193,4]
[350104715,1737628260507,-802.66496489,0.000193,4]
[350104716,1737628260518,-632.27300002,0.000193,4]
[350104717,1737628260530,-425.1582348,0.000193,4]
[350104718,1737628260541,-12944.51835097,0.000193,4]
[350104719,1737628260604,-644.718,0.000193,4]
[350104720,1737628260663,-502.7241224,0.00019178,2]
[350104721,1737628260672,-5.8758776,0.000193,4]
[350104722,1737628260682,-36070.0458236,0.000193,4]
[350104723,1737628260696,-18657.34794376,0.000193,4]
[350104724,1737628260707,-312.095598,0.000193,4]
[350104725,1737628260718,-508.848563,0.000193,4]
[350104726,1737628260729,-800.57499998,0.000193,4]
[350104727,1737628260741,-1649.538,0.000193,4]
[350104728,1737628260753,-4390.62483754,0.000193,4]
[350104729,1737628260763,-46946.49674229,0.000193,4]
[350104730,1737628260776,-553.048821,0.000193,4]
[350104731,1737628260787,-31408.84759222,0.000193,4]
[350104732,1737628260805,-722.19529931,0.000193,4]
[350104733,1737628260815,-3292.27565339,0.000193,4]
[350104734,1737628261121,-151.0,0.00018901,2]
[350104735,1737628261131,-780.43101342,0.000193,4]
[350104736,1737628261143,-108559.23672548,0.000193,4]
[350104737,1737628261158,-1429.19854153,0.000193,4]
[350104738,1737628261170,-773.2,0.000193,4]
[350104739,1737628261181,-4415.71371553,0.000193,4]
[350104740,1737628261192,-1359.61261136,0.000193,4]
[350104741,1737628261203,-6855.90067227,0.000193,4]
[350104742,1737628261215,-11116.34384161,0.000193,4]
[350104743,1737628261227,-21533.27470492,0.000193,4]
[350104744,1737628261239,-10377.31968114,0.000193,4]
[350104745,1737628261249,-1406.04652,0.000193,4]
[350104746,1737628261260,-8545.85860764,0.000193,4]
[350104747,1737628261278,-500.0,0.00016438,2]
[350104748,1737628261287,-261.63898928,0.000193,4]
[350104749,1737628261299,-4163.72940921,0.000193,4]
[350104750,1737628261317,-312.934998,0.000193,4]
[350104751,1737628261332,-1132.58449139,0.000193,4]
[350104752,1737628261349,-1469.6840553,0.000193,4]
[350104753,1737628261360,-1344.53759976,0.000193,4]
[350104754,1737628261501,-500.0,0.00016712,2]
[350104755,1737628261511,-211.48,0.00016986,2]
[350104756,1737628261520,-151.0,0.00018901,2]
[350104757,1737628261529,-151.0,0.00018901,2]
[350104758,1737628261539,-5.02,0.000193,4]
[350104759,1737628261550,-5600.0,0.000193,4]
[350104760,1737628261561,-3639.43722542,0.000193,4]
[350104761,1737628261590,-7857.30869034,0.000193,4]
[350104762,1737628261602,-328.82835881,0.000193,4]
[350104763,1737628261613,-782.66134696,0.000193,4]
[350104764,1737628261624,-510.13036936,0.000193,4]
[350104769,1737628739792,154.83,0.00016658,30]
[350104777,1737629407805,1000.0,0.00022,120]
[350104789,1737629432055,-354.83,0.00010137,2]
[350104790,1737629432068,-645.568,0.00011,2]
[350104791,1737629432110,-71.432,0.00011,2]
[350104792,1737629432120,-173.9,0.00012329,2]
[350104793,1737629432129,-60.72375,0.00014117,2]
[350104794,1737629432141,-1217.19625,0.00014117,2]
[350104795,1737629432151,-550.0,0.00015,2]
[350104796,1737629432160,-2664.28556607,0.00015,2]
[350104797,1737629432169,-250.0,0.00015502,2]
[350104798,1737629432179,-200.0,0.00015624,2]
[350104799,1737629432188,-250.0,0.00015661,2]
[350104800,1737629432197,-173.81,0.00015779,2]
[350104801,1737629432206,-150.0,0.00015836,2]
[350104802,1737629432215,-15122.0700872,0.00015858,2]
[350104803,1737629432226,-8777.9299128,0.00015858,2]
[350104804,1737629432235,-173.07,0.00016075,2]
[350104805,1737629432244,-157.99,0.00016243,2]
[350104806,1737629432253,-219.36033635,0.00016274,2]
[350104807,1737629432262,-150.0,0.00016326,2]
[350104808,1737629432271,-1277.92,0.00016381,2]
[350104809,1737629432280,-338.42,0.00016398,2]
[350104810,1737629432289,-9976.1,0.00016398,2]
[350104811,1737629432298,-275.92887426,0.00016437,2]
[350104812,1737629432307,-500.0,0.00016438,2]
[350104813,1737629432318,-500.0,0.00016438,2]
[350104814,1737629432327,-500.0,0.00016438,2]
[350104815,1737629432337,-500.0,0.00016438,2]
[350104816,1737629432346,-500.0,0.00016438,2]
[350104817,1737629432356,-500.0,0.00016438,2]
[350104818,1737629432365,-646.66688309,0.00016438,2]
[350104819,1737629432374,-500.0,0.00016438,2]
[350104820,1737629432384,-500.0,0.00016438,2]
[350104821,1737629432392,-500.0,0.00016438,2]
[350104822,1737629432578,-565.33786348,0.00016438,2]
[350104823,1737629432588,-500.0,0.00016438,2]
[350104824,1737629432597,-500.0,0.00016438,2]
[350104825,1737629432606,-184.6405745,0.00016438,2]
[350104826,1737629432615,-500.0,0.00016438,2]
[350104827,1737629432624,-500.0,0.00016438,2]
[350104828,1737629432633,-500.0,0.00016438,2]
[350104829,1737629432642,-500.0,0.00016438,2]
[350104830,1737629432652,-500.0,0.00016438,2]
[350104831,1737629432661,-500.0,0.00016438,2]
[350104832,1737629432670,-500.0,0.00016438,2]
[350104833,1737629432680,-500.0,0.00016438,2]
[350104834,1737629432689,-183.69397202,0.00016438,2]
[350104835,1737629432698,-592.61071851,0.00016438,2]
[350104836,1737629432708,-500.0,0.00016438,2]
[350104837,1737629432717,-500.0,0.00016438,2]
[350104838,1737629432726,-500.0,0.00016438,2]
[350104839,1737629432736,-500.0,0.00016438,2]
[350104840,1737629432746,-500.0,0.00016438,2]
[350104841,1737629432755,-500.0,0.00016438,2]
[350104842,1737629432765,-541.09205547,0.00016438,2]
[350104843,1737629432774,-500.0,0.00016438,2]
[350104844,1737629432785,-500.0,0.00016438,2]
[350104845,1737629432794,-500.0,0.00016438,2]
[350104846,1737629432803,-500.0,0.00016438,2]
[350104847,1737629432813,-500.0,0.00016438,2]
[350104848,1737629432822,-676.19,0.00016438,2]
[350104849,1737629432831,-500.0,0.00016438,2]
[350104850,1737629432841,-500.0,0.00016438,2]
[350104851,1737629432851,-500.0,0.00016438,2]
[350104852,1737629432860,-500.0,0.00016438,2]
[350104853,1737629432869,-500.0,0.00016438,2]
[350104854,1737629432878,-500.0,0.00016438,2]
[350104855,1737629432888,-500.0,0.00016438,2]
[350104856,1737629432897,-561.96,0.00016438,2]
[350104857,1737629432906,-500.0,0.00016438,2]
[350104858,1737629432916,-500.0,0.00016438,2]
[350104859,1737629432925,-500.0,0.00016438,2]
[350104860,1737629432935,-1042.61,0.00016438,2]
[350104861,1737629432944,-500.0,0.00016438,2]
[350104862,1737629432953,-500.0,0.00016438,2]
[350104863,1737629432963,-500.0,0.00016438,2]
[350104864,1737629432972,-500.0,0.00016438,2]
[350104865,1737629432981,-500.0,0.00016438,2]
[350104866,1737629432990,-500.0,0.00016438,2]
[350104867,1737629432999,-500.0,0.00016438,2]
[350104868,1737629433009,-500.0,0.00016438,2]
[350104869,1737629433018,-500.0,0.00016438,2]
[350104870,1737629433027,-500.0,0.00016438,2]
[350104871,1737629433037,-500.0,0.00016438,2]
[350104872,1737629433047,-500.0,0.00016438,2]
[350104873,1737629433057,-500.0,0.00016438,2]
[350104874,1737629433069,-271.54139549,0.00016438,2]
[350104875,1737629433078,-500.0,0.00016438,2]
[350104876,1737629433089,-500.0,0.00016438,2]
[350104877,1737629433099,-300.0,0.00016438,2]
[350104878,1737629433109,-357.73412678,0.00016438,2]
[350104879,1737629433119,-500.0,0.00016438,2]
[350104880,1737629433128,-500.0,0.00016438,2]
[350104881,1737629433138,-500.0,0.00016438,2]
[350104882,1737629433149,-500.0,0.00016438,2]
[350104883,1737629433159,-500.0,0.00016438,2]
[350104884,1737629433168,-500.0,0.00016438,2]
[350104885,1737629433178,-279.84,0.00016438,2]
[350104886,1737629433188,-500.0,0.00016438,2]
[350104887,1737629433198,-500.0,0.00016438,2]
[350104888,1737629433207,-500.0,0.00016438,2]
[350104889,1737629433217,-500.0,0.00016438,2]
[350104890,1737629433226,-500.0,0.00016438,2]
[350104891,1737629433235,-500.0,0.00016438,2]
[350104892,1737629433246,-500.0,0.00016438,2]
[350104893,1737629433255,-500.0,0.00016438,2]
[350104894,1737629433265,-500.0,0.00016438,2]
[350104895,1737629433274,-500.0,0.00016438,2]
[350104896,1737629433284,-500.0,0.00016438,2]